bitfinex/quotes_SOLUSD_20250326
["timestamp","ask_amount","ask_price","bid_price","bid_amount"]
[1742992217235,0.20516157,144.21,144.18,12.00862529]
[1742992217636,0.20516157,144.21,144.17,35.49606694]
[1742992217851,0.20516157,144.21,144.17,47.50469223]
[1742992218949,0.20516157,144.21,144.18,12.00862529]
[1742992219532,0.063,144.21,144.18,12.00862529]
[1742992219730,0.063,144.21,144.2,12.00862529]
[1742992219936,0.063,144.21,144.19,12.00862529]
[1742992221358,0.063,144.21,144.18,30.65827415]
[1742992221940,0.20516157,144.21,144.17,47.50469223]
[1742992222760,0.20516157,144.21,144.17,35.49606694]
[1742992223141,12.00862529,144.2,144.15,12.00862529]
[1742992223342,12.15078686,144.18,144.13,12.00862529]
[1742992223559,12.00862529,144.17,144.13,35.49606694]
[1742992224137,12.00862529,144.18,144.13,47.50469223]
[1742992224358,0.14216157,144.17,144.13,47.50469223]
[1742992224555,0.14216157,144.2,144.16,12.00862529]
[1742992224859,0.14216157,144.2,144.16,47.50469223]
[1742992225061,0.14216157,144.18,144.16,35.49606694]
[1742992225262,0.14216157,144.18,144.12,54.44319223]
[1742992225263,0.14216157,144.16,144.12,54.44319223]
[1742992225466,0.14216157,144.16,144.12,35.49606694]
[1742992225760,0.14216157,144.14,144.1,47.50469223]
[1742992226143,12.00862529,144.13,144.1,35.49606694]
[1742992226349,12.15078686,144.12,144.08,35.49606694]
[1742992226751,12.00862529,144.12,144.08,35.49606694]
[1742992226961,0.14216157,144.12,144.08,47.50469223]
[1742992227470,0.14216157,144.12,144.08,54.44519223]
[1742992227765,12.00862529,144.15,144.12,0.03]
[1742992227959,0.14216157,144.14,144.12,0.03]
[1742992228466,0.14216157,144.13,144.12,0.03]
[1742992228845,18.94525319,144.15,144.12,0.03]
[1742992229160,0.14216157,144.13,144.12,0.03]
[1742992230248,18.94525319,144.15,144.12,0.03]
[1742992230458,18.80309162,144.13,144.12,0.03]
[1742992230760,18.94525319,144.13,144.12,0.03]
[1742992231664,25.88335319,144.13,144.12,0.03]
[1742992231970,18.94525319,144.13,144.12,0.03]
[1742992234272,20.14216157,144.13,144.12,0.03]
[1742992234450,18.94525319,144.13,144.12,0.03]
[1742992236972,20.14216157,144.13,144.12,0.03]
[1742992239072,0.14216157,144.13,144.12,0.03]
[1742992240370,5.96,144.15,144.12,0.03]
[1742992240559,0.14216157,144.16,144.12,18.83309162]
[1742992240758,18.94525319,144.16,144.12,0.03]
[1742992241367,0.14216157,144.16,144.12,18.83309162]
[1742992243274,0.14216157,144.16,144.12,25.77159162]
[1742992245681,0.14216157,144.16,144.13,18.80309162]
[1742992245874,0.14216157,144.16,144.12,25.77159162]
[1742992246088,18.94525319,144.16,144.12,6.9685]
[1742992246576,18.94525319,144.16,144.12,0.03]
[1742992246876,0.14216157,144.14,144.12,0.03]
[1742992249182,18.94525319,144.16,144.12,0.03]
[1742992249880,0.14216157,144.16,144.12,0.03]
[1742992250976,12.03145057,144.16,144.12,0.03]
[1742992251285,12.09445057,144.16,144.12,0.03]
[1742992253986,0.14216157,144.14,144.12,0.03]
[1742992254169,12.17361214,144.14,144.12,0.03]
[1742992254575,12.17361214,144.13,144.12,0.03]
[1742992256892,18.11361214,144.13,144.12,0.03]
[1742992257389,6.08216157,144.13,144.12,0.03]
[1742992257791,0.14216157,144.13,144.12,0.03]
[1742992259571,12.17361214,144.13,144.12,0.03]
[1742992259770,19.11171214,144.13,144.12,0.03]
[1742992261071,26.86631214,144.13,144.12,0.03]
[1742992263873,45.515961,144.13,144.12,0.03]
[1742992264274,20.14216157,144.09,144.01,35.49606694]
[1742992264474,0.14216157,144.04,144.01,35.49606694]
[1742992265374,12.17361214,144.04,144.0,0.03]
[1742992265575,0.14216157,144.02,144.0,0.03]
[1742992265782,12.17361214,144.02,144.0,0.03]
[1742992266074,0.14216157,144.02,144.0,0.03]
[1742992266391,12.17361214,144.02,144.0,0.03]
[1742992266576,12.17361214,144.01,144.0,0.03]
[1742992266988,24.92323816,144.01,144.0,0.03]
[1742992267986,5.94,144.01,144.0,0.03]
[1742992268674,0.14216157,144.02,144.0,0.03]
[1742992270377,0.14216157,144.05,144.01,18.84107659]
[1742992270578,200.16,144.06,144.03,18.84107659]
[1742992270972,0.14216157,144.06,144.02,18.84107659]
[1742992271389,5.94,144.07,144.03,18.84107659]
[1742992271597,0.14216157,144.07,144.03,18.84107659]
[1742992271900,20.0,144.06,144.04,18.84107659]
[1742992272106,0.14216157,144.08,144.04,18.84107659]
[1742992272281,5.96,144.09,144.06,6.9415]
[1742992274003,0.14216157,144.09,144.06,6.9415]
[1742992274589,38.98323816,144.08,144.05,6.942]
[1742992275777,38.98323816,144.08,144.04,42.43836694]
[1742992275984,38.98323816,144.08,144.01,18.84107659]
[1742992275985,0.14216157,144.05,144.01,18.84107659]
[1742992276184,18.84107659,144.04,144.01,6.9439]
[1742992276794,0.14216157,144.04,144.01,25.78497659]
[1742992277080,0.14216157,144.05,144.01,25.78497659]
[1742992277885,0.14216157,144.06,144.02,18.84107659]
[1742992278092,0.14216157,144.06,144.03,18.84107659]
[1742992278486,120.54107659,144.09,144.04,18.84107659]
[1742992278690,0.14216157,144.08,144.05,6.942]
[1742992279093,24.80107659,144.09,144.05,6.942]
[1742992279288,0.14216157,144.1,144.06,18.84107659]
[1742992279895,0.14216157,144.1,144.06,17.55933169]
[1742992280207,17.70149326,144.1,144.06,17.55933169]
[1742992280797,17.70149326,144.1,144.06,24.50053169]
[1742992280997,17.70149326,144.1,144.06,6.9412]
[1742992281197,17.55933169,144.09,144.06,6.9412]
[1742992281993,17.55933169,144.09,144.05,6.9418]
[1742992282189,17.55933169,144.09,144.05,24.50113169]
[1742992282397,17.70149326,144.1,144.05,24.50113169]
[1742992282612,0.14216157,144.1,144.06,17.55933169]
[1742992282810,0.14216157,144.1,144.07,6.941]
[1742992284016,17.70149326,144.1,144.07,6.941]
[1742992284913,17.70149326,144.1,144.06,6.9415]
[1742992285105,37.70149326,144.09,144.05,24.50113169]
[1742992285618,17.55933169,144.08,144.04,42.43836694]
[1742992285799,17.55933169,144.07,144.04,42.43836694]
[1742992286010,17.55933169,144.08,144.04,42.43836694]
[1742992287011,17.55933169,144.06,144.01,53.05539863]
[1742992287230,17.55933169,144.05,144.01,35.49606694]
[1742992287726,17.55933169,144.05,144.01,59.99919863]
[1742992287928,17.70149326,144.06,144.01,59.99919863]
[1742992288525,5.96,144.07,144.04,17.55933169]
[1742992288831,5.96,144.07,144.05,6.942]
[1742992291027,5.96,144.07,144.04,6.9425]
[1742992291231,0.14216157,144.06,144.03,6.9427]
[1742992292236,17.70149326,144.06,144.03,6.9427]
[1742992292432,17.70149326,144.06,144.02,6.9433]
[1742992293328,17.55933169,144.05,144.01,42.43986694]
[1742992294003,20.0,144.04,144.0,24.53373169]
[1742992294310,17.55933169,144.05,144.0,24.53373169]
[1742992294510,17.55933169,144.05,144.01,17.55933169]
[1742992295009,17.55933169,144.05,144.01,24.50303169]
[1742992295528,0.14216157,144.04,144.01,24.50303169]
[1742992295738,0.14216157,144.04,144.01,6.9437]
[1742992297011,0.14216157,144.04,144.01,24.50303169]
[1742992298924,0.14216157,144.04,144.0,6.9742]
[1742992299237,17.70149326,144.04,144.0,24.53353169]
[1742992299423,17.70149326,144.04,144.0,0.03]
[1742992299424,0.14216157,144.02,144.0,0.03]
[1742992299614,17.70149326,144.02,144.0,0.03]
[1742992300226,17.55933169,144.01,144.0,0.03]
[1742992300427,23.66149326,144.02,144.0,0.03]
[1742992301114,17.55933169,144.01,144.0,0.03]
[1742992301310,17.70149326,144.01,144.0,0.03]
[1742992302112,24.64539326,144.01,144.0,0.03]
[1742992302526,17.70149326,144.01,144.0,0.03]
[1742992302834,5.96,144.02,144.0,0.03]
[1742992303953,0.14216157,144.01,144.0,0.03]
[1742992304146,20.0,144.02,144.0,24.53373169]
[1742992304332,20.0,144.02,144.01,17.55933169]
[1742992304646,20.0,144.02,144.0,24.53373169]
[1742992305327,20.0,144.02,144.0,0.03]
[1742992307347,0.14216157,144.01,144.0,0.03]
[1742992308162,20.0,144.02,144.0,17.58933169]
[1742992309032,20.0,144.02,144.0,0.03]
[1742992309333,20.0,144.02,144.0,17.58933169]
[1742992309641,0.14216157,144.06,144.01,17.55933169]
[1742992309945,0.14216157,144.06,144.03,17.55933169]
[1742992310343,0.14216157,144.06,144.03,24.50213169]
[1742992310564,0.14216157,144.07,144.04,17.55933169]
[1742992310875,0.14216157,144.07,144.03,24.50213169]
[1742992311749,0.14216157,144.07,144.03,17.55933169]
[1742992311943,0.14216157,144.07,144.03,24.50223169]
[1742992312567,24.64259326,144.07,144.02,18.64964886]
[1742992312861,24.64259326,144.07,144.03,17.55933169]
[1742992313041,0.14216157,144.07,144.03,17.55933169]
[1742992314015,0.14216157,144.07,144.03,24.50213169]
[1742992314161,232.30163169,144.1,144.05,17.55933169]
[1742992314480,0.14216157,144.09,144.06,17.55933169]
[1742992315156,0.14216157,144.09,144.05,17.55933169]
[1742992316278,0.14216157,144.09,144.05,24.50083169]
[1742992317766,200.26,144.1,144.07,17.55933169]
[1742992317989,0.20516157,144.13,144.09,17.55933169]
[1742992318148,0.20516157,144.13,144.1,17.55933169]
[1742992318349,0.063,144.13,144.11,17.55933169]
[1742992319078,0.063,144.13,144.11,17.54893219]
[1742992321372,0.063,144.13,144.1,17.54893219]
[1742992321662,0.063,144.13,144.08,20.16334886]
[1742992321852,0.063,144.13,144.09,17.54893219]
[1742992322048,17.61193219,144.13,144.08,17.54893219]
[1742992322260,0.20516157,144.12,144.08,17.54893219]
[1742992322571,6.9391,144.11,144.08,17.54893219]
[1742992322771,24.48803219,144.11,144.07,17.54893219]
[1742992323266,0.14216157,144.1,144.06,35.49606694]
[1742992323453,17.69109376,144.1,144.06,53.04499913]
[1742992323856,17.69109376,144.1,144.06,35.49606694]
[1742992324167,23.67109376,144.1,144.06,35.49606694]
[1742992324564,6.9401,144.09,144.06,35.49606694]
[1742992326071,0.14216157,144.08,144.05,17.54893219]
[1742992326770,30.46863219,144.1,144.06,17.54893219]
[1742992326962,0.14216157,144.09,144.06,17.56008489]
[1742992329687,7.08226157,144.09,144.06,17.56008489]
[1742992329890,7.08226157,144.09,144.05,17.56008489]
[1742992330091,7.08226157,144.09,144.03,54.1457158]
[1742992330395,7.08226157,144.09,144.05,17.56008489]
[1742992330954,17.56008489,144.08,144.03,78.64860069]
[1742992331170,17.56008489,144.07,144.03,35.49606694]
[1742992332271,24.50128489,144.07,144.03,35.49606694]
[1742992332488,17.56008489,144.07,144.03,53.05615183]
[1742992332987,17.56008489,144.07,144.03,59.99905183]
[1742992333282,7.08286157,144.08,144.03,59.99895183]
[1742992333283,24.64284646,144.08,144.03,59.99895183]
[1742992333964,24.64284646,144.08,144.03,60.02895183]
[1742992334277,17.70224646,144.08,144.03,60.02895183]
[1742992335072,17.70224646,144.08,144.04,17.56008489]
[1742992336698,24.64274646,144.08,144.04,17.56008489]
[1742992336854,0.14216157,144.06,144.03,35.52606694]
[1742992337061,17.70224646,144.06,144.03,0.03]
[1742992337368,17.56008489,144.05,144.03,0.03]
[1742992338180,17.70224646,144.04,144.03,0.03]
[1742992338984,24.64474646,144.04,144.03,0.03]
[1742992339162,17.70224646,144.04,144.03,0.03]
[1742992339367,24.64474646,144.04,144.03,0.03]
[1742992350977,24.29803486,144.04,144.03,0.03]
[1742992351794,0.14216157,144.04,144.03,0.03]
[1742992351981,6.10216157,144.04,144.03,0.03]
[1742992352368,24.29803486,144.04,144.03,0.03]
[1742992354683,13.04466157,144.04,144.03,0.03]
[1742992354875,24.29803486,144.04,144.03,0.03]
[1742992359097,6.10216157,144.04,144.03,0.03]
[1742992359299,0.14216157,144.04,144.03,0.03]
[1742992360581,18.33803486,144.04,144.03,0.03]
[1742992360781,7.08466157,144.04,144.03,0.03]
[1742992361293,0.14216157,144.04,144.03,0.03]
[1742992364092,200.24,144.05,144.03,11.28337329]
[1742992364294,11.25337329,144.09,144.04,11.25337329]
[1742992364495,0.14216157,144.08,144.05,11.25337329]
[1742992365294,20.14216157,144.07,144.06,11.25337329]
[1742992365472,206.26,144.1,144.06,11.25337329]
[1742992365677,20.14216157,144.08,144.07,11.25337329]
[1742992366094,20.0,144.08,144.07,11.25337329]
[1742992367997,200.44216157,144.1,144.07,11.25337329]
[1742992368304,0.14216157,144.09,144.07,11.25337329]
[1742992368890,0.14216157,144.09,144.06,14.04830659]
[1742992370115,7.08226157,144.09,144.05,20.99010659]
[1742992370494,0.14216157,144.07,144.03,51.19667353]
[1742992370812,14.19046816,144.08,144.03,58.13937353]
[1742992370990,0.14216157,144.08,144.04,14.04830659]
[1742992371303,14.1953601,144.08,144.04,14.05319853]
[1742992371886,0.14216157,144.08,144.04,20.99559853]
[1742992372499,14.05319853,144.05,144.03,35.52606694]
[1742992372705,14.1953601,144.04,144.03,0.03]
[1742992374603,21.1378601,144.04,144.03,0.03]
[1742992374918,29.05660878,144.04,144.03,0.03]
[1742992383116,22.11410878,144.04,144.03,0.03]
[1742992383297,28.07410878,144.04,144.03,0.03]
[1742992384325,35.01660878,144.04,144.03,0.03]
[1742992389618,53.66625764,144.04,144.03,0.03]
[1742992389812,20.14216157,144.01,144.0,0.03]
[1742992389993,42.11410878,144.01,144.0,0.03]
[1742992391306,49.05800878,144.01,144.0,0.03]
[1742992393417,20.14216157,144.01,144.0,0.03]
[1742992393621,0.14216157,144.01,144.0,0.03]
[1742992393924,22.11410878,144.01,144.0,0.03]
[1742992394421,49.05800878,144.01,144.0,0.03]
[1742992395011,41.15300849,144.01,144.0,0.03]
[1742992396108,21.15300849,144.01,144.0,0.03]
[1742992398607,7.08606157,144.01,144.0,0.03]
[1742992398914,13.06606157,144.01,144.0,0.03]
[1742992399113,27.13300849,144.01,144.0,0.03]
[1742992401210,45.78265735,144.01,144.0,0.03]
[1742992401730,27.13300849,144.01,144.0,0.03]
[1742992401910,7.08606157,144.01,144.0,0.03]
[1742992402117,13.06606157,144.01,144.0,0.03]
[1742992403629,35.04562968,144.01,144.0,0.03]
[1742992409512,29.06562968,144.01,144.0,0.03]
[1742992409712,7.08606157,144.01,144.0,0.03]
[1742992411431,29.06562968,144.01,144.0,0.03]
[1742992419445,0.063,144.03,144.0,22.00956811]
[1742992419738,0.063,144.03,144.01,21.97956811]
[1742992420130,0.063,144.03,144.0,6.9743]
[1742992420331,0.063,144.03,144.01,21.97956811]
[1742992422341,20.14216157,144.01,144.0,0.03]
[1742992422529,26.12216157,144.01,144.0,0.03]
[1742992425449,6.12216157,144.01,144.0,14.09468484]
[1742992425660,0.063,144.03,144.0,14.09468484]
[1742992425949,20.0,144.02,144.0,14.09468484]
[1742992426245,0.14216157,144.01,144.0,14.09468484]
[1742992426624,0.20516157,144.03,144.0,21.03908484]
[1742992426946,0.14216157,144.01,144.0,21.03908484]
[1742992429340,20.0,144.02,144.0,21.03908484]
[1742992429542,20.0,144.02,144.0,6.9744]
[1742992429735,20.14216157,144.02,144.01,14.06468484]
[1742992430761,20.14216157,144.02,144.0,21.03908484]
[1742992430961,20.14216157,144.02,144.01,14.06468484]
[1742992433558,20.14216157,144.02,144.01,21.00858484]
[1742992434157,20.14216157,144.02,144.0,6.9742]
[1742992434333,20.14216157,144.02,144.0,21.03888484]
[1742992436154,0.063,144.03,144.0,21.03888484]
[1742992436155,0.063,144.03,144.01,14.06468484]
[1742992436359,0.063,144.03,144.02,34.3062337]
[1742992438140,0.063,144.03,144.02,41.2496337]
[1742992438344,0.0001,144.03,144.02,41.2496337]
[1742992440443,0.0001,144.03,144.02,76.74570064]
[1742992442033,0.0001,144.03,144.02,58.09605178]
[1742992442970,0.0001,144.03,144.02,76.74570064]
[1742992445961,0.14216157,144.09,144.02,128.82180064]
[1742992446144,20.14216157,144.09,144.08,14.06468484]
[1742992446459,20.14216157,144.09,144.07,14.06468484]
[1742992448066,20.14216157,144.09,144.07,21.00528484]
[1742992449266,20.14216157,144.09,144.04,17.3556]
[1742992449447,20.14216157,144.09,144.07,14.06468484]
[1742992450666,20.14216157,144.09,144.07,21.00528484]
[1742992452970,20.0,144.09,144.07,21.00528484]
[1742992453159,0.063,144.12,144.08,14.06468484]
[1742992453351,0.063,144.12,144.11,14.06468484]
[1742992453546,20.20516157,144.12,144.11,14.06468484]
[1742992453763,20.20516157,144.12,144.07,24.2932]
[1742992453764,20.20516157,144.12,144.1,14.06468484]
[1742992454175,0.20516157,144.12,144.1,14.06468484]
[1742992455360,20.20516157,144.12,144.11,6.9391]
[1742992456258,0.063,144.12,144.11,21.00378484]
[1742992456664,0.063,144.12,144.11,6.9391]
[1742992456867,0.063,144.12,144.11,21.00378484]
[1742992460472,0.063,144.12,144.11,39.6534337]
[1742992460664,0.0001,144.12,144.11,39.6534337]
[1742992465770,0.0001,144.13,144.12,18.64964886]
[1742992466069,0.0001,144.13,144.12,32.7143337]
[1742992466856,0.0001,144.13,144.12,39.6529337]
[1742992471780,0.0001,144.13,144.12,133.05364]
[1742992471979,0.063,144.16,144.15,32.7143337]
[1742992472280,0.063,144.16,144.15,39.6515337]
[1742992474075,0.063,144.18,144.15,56.9945337]
[1742992474271,0.063,144.18,144.17,14.06468484]
[1742992476479,0.063,144.18,144.17,21.00088484]
[1742992479862,0.063,144.18,144.17,39.6505337]
[1742992480066,0.063,144.21,144.18,18.64964886]
[1742992480267,0.063,144.21,144.2,14.06468484]
[1742992481487,0.063,144.21,144.18,18.64964886]
[1742992481701,0.063,144.21,144.2,14.06468484]
[1742992481869,0.063,144.21,144.2,20.99948484]
[1742992482769,0.063,144.21,144.19,6.935]
[1742992482978,0.063,144.21,144.2,14.06468484]
[1742992483663,0.063,144.21,144.19,6.935]
[1742992483868,0.063,144.21,144.2,14.06468484]
[1742992484090,0.063,144.21,144.2,20.99948484]
[1742992485089,0.063,144.21,144.2,131.40394]
[1742992486290,0.063,144.21,144.2,75.14520064]
[1742992486489,0.063,144.21,144.2,131.40394]
[1742992486688,0.063,144.21,144.2,75.14520064]
[1742992488693,0.063,144.21,144.2,68.21040064]
[1742992489394,0.063,144.21,144.2,75.14520064]
[1742992490786,0.063,144.21,144.2,49.56075178]
[1742992491693,0.063,144.21,144.18,18.64964886]
[1742992491879,0.063,144.21,144.18,32.7143337]
[1742992492677,0.063,144.21,144.2,14.06468484]
[1742992493092,0.063,144.21,144.18,25.58524886]
[1742992493297,0.063,144.21,144.2,14.06468484]
[1742992494275,0.063,144.21,144.2,20.99948484]
[1742992494471,0.063,144.21,144.2,39.6491337]
[1742992495479,0.063,144.21,144.2,38.6491337]
[1742992497596,0.063,144.21,144.2,74.14520064]
[1742992499590,0.063,144.21,144.2,130.40394]
[1742992499789,0.063,144.21,144.2,75.14520064]
[1742992502289,0.063,144.21,144.2,42.43086694]
[1742992502488,0.063,144.21,144.2,56.49555178]
[1742992503213,0.063,144.21,144.2,75.14520064]
[1742992505905,0.063,144.21,144.2,56.49555178]
[1742992506096,0.063,144.21,144.2,35.49606694]
[1742992506293,0.063,144.21,144.18,21.00018484]
[1742992507003,0.063,144.21,144.2,14.06468484]
[1742992507309,0.063,144.21,144.18,6.9355]
[1742992507512,0.063,144.21,144.2,14.06468484]
[1742992507698,0.063,144.21,144.19,14.06468484]
[1742992508308,0.063,144.21,144.19,20.99948484]
[1742992509401,0.063,144.21,144.2,14.06468484]
[1742992510714,0.063,144.21,144.2,20.99948484]
[1742992512396,0.063,144.21,144.2,39.6491337]
[1742992512796,0.063,144.21,144.2,75.14520064]
[1742992513890,0.063,144.21,144.2,42.43086694]
[1742992514089,0.063,144.21,144.2,56.49555178]
[1742992514504,0.063,144.21,144.2,49.56075178]
[1742992514814,0.063,144.21,144.2,42.43086694]
[1742992516102,0.063,144.21,144.2,35.49606694]
[1742992516297,0.063,144.21,144.19,14.06468484]
[1742992516504,0.063,144.21,144.18,14.06468484]
[1742992517098,0.063,144.21,144.18,21.00038484]
[1742992518121,0.063,144.21,144.2,14.06468484]
[1742992518619,0.063,144.21,144.19,14.06468484]
[1742992521228,0.063,144.21,144.18,21.00038484]
[1742992521815,0.063,144.21,144.18,21.06338484]
[1742992522733,0.063,144.21,144.18,0.063]
[1742992523628,0.063,144.21,144.18,6.9986]
[1742992523833,0.063,144.21,144.18,0.063]
[1742992524746,0.063,144.21,144.18,21.06328484]
[1742992525021,0.063,144.21,144.2,14.06468484]
[1742992525223,0.063,144.21,144.2,70.3234242]
[1742992525907,0.0001,144.21,144.2,124.46914]
[1742992526811,0.0001,144.21,144.2,131.40394]
[1742992531666,0.063,144.23,144.21,18.64964886]
[1742992531813,0.063,144.23,144.22,14.06468484]
[1742992533130,0.063,144.23,144.22,32.7143337]
[1742992533538,0.063,144.23,144.22,39.6481337]
[1742992533914,0.063,144.23,144.21,35.49606694]
[1742992533915,0.063,144.23,144.21,42.43016694]
[1742992534118,0.063,144.23,144.22,14.06468484]
[1742992535853,0.063,144.23,144.21,35.49606694]
[1742992538623,0.20516157,144.23,144.21,35.49606694]
[1742992538923,14.06468484,144.22,144.18,0.063]
[1742992539357,20.99888484,144.22,144.18,0.063]
[1742992539560,20.99888484,144.22,144.18,14.12768484]
[1742992539561,6.9342,144.22,144.18,14.12768484]
[1742992540055,21.20334641,144.23,144.19,14.06468484]
[1742992540669,0.20516157,144.23,144.19,14.06468484]
[1742992541163,21.20314641,144.23,144.18,0.063]
[1742992541330,21.20314641,144.23,144.18,14.12768484]
[1742992541730,21.20314641,144.23,144.19,14.06468484]
[1742992542544,21.20314641,144.23,144.18,14.12768484]
[1742992542751,14.20684641,144.2,144.18,0.063]
[1742992544049,21.14164641,144.2,144.18,0.063]
[1742992544932,14.20684641,144.19,144.18,0.063]
[1742992545134,22.47294641,144.19,144.18,0.063]
[1742992545540,29.40814641,144.19,144.18,0.063]
[1742992547858,8.40826157,144.19,144.18,0.063]
[1742992548058,20.0,144.19,144.18,0.063]
[1742992548557,20.0,144.19,144.18,14.12768484]
[1742992548770,0.14216157,144.21,144.18,0.063]
[1742992549534,14.20684641,144.21,144.18,0.063]
[1742992551084,0.14216157,144.21,144.18,0.063]
[1742992551457,20.00468484,144.22,144.18,0.063]
[1742992552363,20.00468484,144.22,144.18,14.12768484]
[1742992554662,20.00468484,144.22,144.18,21.06328484]
[1742992557460,14.06468484,144.22,144.18,21.06328484]
[1742992558564,0.14216157,144.22,144.18,21.06328484]
[1742992558748,0.063,144.23,144.21,14.06468484]
[1742992559143,0.063,144.23,144.21,20.99868484]
[1742992559765,0.063,144.23,144.2,20.99928484]
[1742992563253,0.063,144.23,144.21,14.06468484]
[1742992563445,0.063,144.23,144.22,14.06468484]
[1742992563772,0.063,144.23,144.22,32.7143337]
[1742992564146,0.063,144.23,144.22,68.21040064]
[1742992564347,0.063,144.24,144.22,68.21040064]
[1742992564561,0.063,144.24,144.23,14.06468484]
[1742992565257,0.063,144.24,144.23,20.99798484]
[1742992566266,0.03,144.27,144.24,18.64964886]
[1742992566463,0.03,144.27,144.26,14.06468484]
[1742992567349,0.03,144.27,144.26,20.99658484]
[1742992567663,0.03,144.27,144.26,75.14230064]
[1742992568858,0.0001,144.28,144.27,20.18054886]
[1742992569050,0.0001,144.28,144.27,126.00004]
[1742992569463,0.0001,144.28,144.27,132.93144]
[1742992569767,0.03,144.33,144.27,150.26004]
[1742992569969,0.03,144.33,144.32,14.06468484]
[1742992570155,0.03,144.33,144.28,18.64964886]
[1742992570359,0.03,144.33,144.32,14.06468484]
[1742992570987,0.03,144.33,144.3,14.06468484]
[1742992572262,0.03,144.33,144.3,20.99458484]
[1742992572979,0.03,144.33,144.3,14.06468484]
[1742992573359,0.03,144.33,144.3,20.99458484]
[1742992575184,0.03,144.33,144.31,14.06468484]
[1742992576061,0.03,144.33,144.32,39.6433337]
[1742992576261,0.03,144.33,144.32,75.13940064]
[1742992584718,0.03,144.33,144.32,131.39814]
[1742992585599,0.03,144.33,144.32,75.13940064]
[1742992585802,0.03,144.33,144.32,61.0747158]
[1742992586101,0.03,144.33,144.32,68.21040064]
[1742992586517,0.03,144.33,144.32,54.1457158]
[1742992586806,0.03,144.33,144.32,68.21040064]
[1742992587402,0.03,144.33,144.32,49.56075178]
[1742992587590,0.03,144.33,144.32,35.49606694]
[1742992587982,0.03,144.33,144.32,49.56075178]
[1742992589211,0.03,144.33,144.32,35.49606694]
[1742992593901,14.09468484,144.33,144.32,35.49606694]
[1742992594899,0.03,144.33,144.32,35.49606694]
[1742992596494,0.03,144.33,144.32,42.42506694]
[1742992596709,0.03,144.33,144.32,56.48975178]
[1742992597092,0.03,144.33,144.32,75.13940064]
[1742992602209,0.03,144.33,144.32,61.0747158]
[1742992602504,0.03,144.33,144.32,75.13940064]
[1742992606500,0.03,144.33,144.32,35.49606694]
[1742992606813,0.03,144.33,144.32,49.56075178]
[1742992607412,0.03,144.33,144.32,56.48975178]
[1742992611314,14.09468484,144.33,144.32,35.49606694]
[1742992611809,14.09468484,144.33,144.28,32.7773337]
[1742992611810,14.09468484,144.33,144.28,54.2087158]
[1742992612110,14.06468484,144.31,144.28,54.2087158]
[1742992612294,0.03,144.33,144.28,35.55906694]
[1742992612295,14.06468484,144.3,144.28,35.55906694]
[1742992613000,20.99468484,144.3,144.28,35.55906694]
[1742992616005,14.06468484,144.3,144.28,35.55906694]
[1742992616523,14.06468484,144.31,144.28,35.55906694]
[1742992616720,14.06468484,144.31,144.28,42.48996694]
[1742992616898,14.06468484,144.32,144.28,56.55465178]
[1742992617894,21.16554641,144.33,144.28,56.55465178]
[1742992618099,14.06468484,144.32,144.28,42.48996694]
[1742992620212,21.16554641,144.33,144.28,56.55465178]
[1742992620593,14.06468484,144.32,144.28,35.55906694]
[1742992621754,14.06468484,144.31,144.28,35.55906694]
[1742992622015,14.06468484,144.3,144.28,35.55906694]
[1742992622398,20.99468484,144.3,144.28,35.55906694]
[1742992623606,14.06468484,144.29,144.28,35.55906694]
[1742992623997,14.06468484,144.29,144.28,0.063]
[1742992627219,6.9304,144.29,144.28,0.063]
[1742992627402,20.99508484,144.29,144.28,0.063]
[1742992627718,21.13724641,144.29,144.28,0.063]
[1742992627916,28.95334641,144.29,144.28,0.063]
[1742992628509,22.02294641,144.29,144.28,0.063]
[1742992629304,28.95334641,144.29,144.28,0.063]
[1742992629934,22.02294641,144.29,144.28,0.063]
[1742992630219,20.39964641,144.29,144.28,0.063]
[1742992633230,27.33004641,144.29,144.28,0.063]
[1742992634729,6.33496157,144.29,144.28,0.063]
[1742992634922,0.14216157,144.3,144.28,0.063]